[Event "Early Titled Tuesday Blitz | February 8 2022"]
[White "Howell, David W L"]
[Black "Rustemov, Alexander"]
[WhiteFideId "410608"]
[BlackFideId "4119002"]
[WhiteElo "2559"]
[BlackElo "2831"]
[Result "1-0"]
[Round "09"]
[TimeControl "180+1"]
[Date "2022.02.08"]
[WhiteClock "0:00:40"]
[BlackClock "0:00:03"]

1. e4 {[%clk 0:03:00]}  e6 {[%clk 0:03:00]} 2. d4 {[%clk 0:02:49]}  d5 {[%clk 0:03:00]} 3. Nc3 {[%clk 0:02:49]}  dxe4 {[%clk 0:03:01]} 4. Nxe4 {[%clk 0:02:49]}  Bd7 {[%clk 0:03:02]} 5. Nf3 {[%clk 0:02:49]}  Bc6 {[%clk 0:03:02]} 6. Bd3 {[%clk 0:02:49]}  Nd7 {[%clk 0:03:03]} 7. O-O {[%clk 0:02:49]}  Ngf6 {[%clk 0:03:03]} 8. Neg5 {[%clk 0:02:50]}  Bd6 {[%clk 0:03:03]} 9. Re1 {[%clk 0:02:50]}  h6 {[%clk 0:03:03]} 10. Rxe6+ {[%clk 0:02:50]}  Kf8 {[%clk 0:03:02]} 11. Rxd6 {[%clk 0:02:50]}  cxd6 {[%clk 0:03:02]} 12. Nh3 {[%clk 0:02:51]}  g5 {[%clk 0:02:51]} 13. Nd2 {[%clk 0:02:48]}  Kg7 {[%clk 0:02:47]} 14. Nc4 {[%clk 0:02:31]}  Nf8 {[%clk 0:02:21]} 15. f3 {[%clk 0:02:22]}  Ng6 {[%clk 0:02:17]} 16. Nf2 {[%clk 0:02:16]}  Re8 {[%clk 0:02:15]} 17. Ne3 {[%clk 0:02:10]}  Nh4 {[%clk 0:01:56]} 18. c4 {[%clk 0:02:03]}  d5 {[%clk 0:01:53]} 19. c5 {[%clk 0:01:59]}  Bd7 {[%clk 0:01:41]} 20. Bd2 {[%clk 0:01:54]}  Qc8 {[%clk 0:01:37]} 21. Qc2 {[%clk 0:01:50]}  a5 {[%clk 0:01:34]} 22. Re1 {[%clk 0:01:38]}  a4 {[%clk 0:01:32]} 23. Bc3 {[%clk 0:01:32]}  Be6 {[%clk 0:01:28]} 24. Qd1 {[%clk 0:01:28]}  Qd7 {[%clk 0:01:24]} 25. Bc2 {[%clk 0:01:22]}  Nf5 {[%clk 0:01:22]} 26. Nf1 {[%clk 0:01:18]}  Re7 {[%clk 0:01:13]} 27. Nd3 {[%clk 0:01:18]}  Qb5 {[%clk 0:01:06]} 28. Ne5 {[%clk 0:01:15]}  Qe8 {[%clk 0:00:57]} 29. Qd3 {[%clk 0:01:08]}  Nh4 {[%clk 0:00:53]} 30. Ng3 {[%clk 0:01:05]}  Ng6 {[%clk 0:00:49]} 31. Qd2 {[%clk 0:00:59]}  Nd7 {[%clk 0:00:43]} 32. Nd3 {[%clk 0:00:52]}  Nf6 {[%clk 0:00:32]} 33. Ne5 {[%clk 0:00:49]}  Nd7 {[%clk 0:00:31]} 34. Nd3 {[%clk 0:00:50]}  Nf6 {[%clk 0:00:32]} 35. f4 {[%clk 0:00:50]}  gxf4 {[%clk 0:00:12]} 36. Nxf4 {[%clk 0:00:46]}  Bd7 {[%clk 0:00:12]} 37. Nfh5+ {[%clk 0:00:43]}  Nxh5 {[%clk 0:00:12]} 38. Nxh5+ {[%clk 0:00:44]}  Kh7 {[%clk 0:00:03]} 39. Nf6+ {[%clk 0:00:43]}  Kg7 {[%clk 0:00:04]} 40. Nxe8+ {[%clk 0:00:44]}  Raxe8 {[%clk 0:00:04]} 41. Rxe7 {[%clk 0:00:44]}  Rxe7 {[%clk 0:00:05]} 42. h3 {[%clk 0:00:41]}  Bb5 {[%clk 0:00:03]} 43. Bd3 {[%clk 0:00:40]} 1-0


[Site "https://www.chess.com"]

[Event "Early Titled Tuesday Blitz | February 8 2022"]
[White "Jaferian, Koosha"]
[Black "Borisova, Ekaterina"]
[WhiteFideId "12507440"]
[BlackFideId "34124184"]
[WhiteElo "2027"]
[BlackElo "2034"]
[Result "0-1"]
[Round "09"]
[TimeControl "180+1"]
[Date "2022.02.08"]
[WhiteClock "0:00:16"]
[BlackClock "0:00:13"]

1. Nf3 {[%clk 0:03:00]}  d5 {[%clk 0:02:58]} 2. b3 {[%clk 0:02:52]}  g6 {[%clk 0:02:57]} 3. Bb2 {[%clk 0:02:52]}  Nf6 {[%clk 0:02:57]} 4. c4 {[%clk 0:02:51]}  c6 {[%clk 0:02:57]} 5. g3 {[%clk 0:02:51]}  Bg7 {[%clk 0:02:57]} 6. Bg2 {[%clk 0:02:52]}  O-O {[%clk 0:02:56]} 7. O-O {[%clk 0:02:52]}  a5 {[%clk 0:02:55]} 8. d4 {[%clk 0:02:52]}  Bf5 {[%clk 0:02:51]} 9. Nbd2 {[%clk 0:02:52]}  Ne4 {[%clk 0:02:51]} 10. Nxe4 {[%clk 0:02:51]}  Bxe4 {[%clk 0:02:51]} 11. e3 {[%clk 0:02:52]}  Nd7 {[%clk 0:02:43]} 12. Nd2 {[%clk 0:02:46]}  Bxg2 {[%clk 0:02:42]} 13. Kxg2 {[%clk 0:02:47]}  e6 {[%clk 0:02:30]} 14. Qe2 {[%clk 0:02:47]}  a4 {[%clk 0:02:28]} 15. Rfd1 {[%clk 0:02:30]}  Qb6 {[%clk 0:02:23]} 16. Bc3 {[%clk 0:02:28]}  Rfe8 {[%clk 0:02:12]} 17. c5 {[%clk 0:02:16]}  Qa6 {[%clk 0:02:11]} 18. Qxa6 {[%clk 0:02:12]}  Rxa6 {[%clk 0:02:12]} 19. f4 {[%clk 0:02:13]}  Nxc5 {[%clk 0:01:58]} 20. b4 {[%clk 0:01:54]}  Nd7 {[%clk 0:01:53]} 21. Rab1 {[%clk 0:01:48]}  b5 {[%clk 0:01:49]} 22. a3 {[%clk 0:01:47]}  Nb6 {[%clk 0:01:28]} 23. Re1 {[%clk 0:01:30]}  Ra7 {[%clk 0:01:26]} 24. Nf3 {[%clk 0:01:23]}  Nc4 {[%clk 0:01:25]} 25. Ra1 {[%clk 0:01:18]}  f6 {[%clk 0:01:08]} 26. Kf2 {[%clk 0:01:14]}  e5 {[%clk 0:01:04]} 27. fxe5 {[%clk 0:01:14]}  fxe5 {[%clk 0:01:04]} 28. dxe5 {[%clk 0:01:11]}  Nxe5 {[%clk 0:00:44]} 29. Nxe5 {[%clk 0:01:10]}  Bxe5 {[%clk 0:00:45]} 30. Bxe5 {[%clk 0:01:02]}  Rxe5 {[%clk 0:00:46]} 31. Rac1 {[%clk 0:01:03]}  Re6 {[%clk 0:00:46]} 32. Rc3 {[%clk 0:01:02]}  Rae7 {[%clk 0:00:45]} 33. Rec1 {[%clk 0:01:02]}  Rf7+ {[%clk 0:00:42]} 34. Kg2 {[%clk 0:01:02]}  Rff6 {[%clk 0:00:42]} 35. R1c2 {[%clk 0:00:42]}  Kf7 {[%clk 0:00:41]} 36. Rd2 {[%clk 0:00:42]}  Ke7 {[%clk 0:00:39]} 37. Rd4 {[%clk 0:00:40]}  Rf5 {[%clk 0:00:36]} 38. Rd2 {[%clk 0:00:38]}  Rfe5 {[%clk 0:00:36]} 39. Kf2 {[%clk 0:00:37]}  Kd7 {[%clk 0:00:30]} 40. Rdc2 {[%clk 0:00:36]}  h5 {[%clk 0:00:25]} 41. Rc1 {[%clk 0:00:34]}  g5 {[%clk 0:00:24]} 42. R1c2 {[%clk 0:00:33]}  Re4 {[%clk 0:00:21]} 43. Rc1 {[%clk 0:00:30]}  g4 {[%clk 0:00:14]} 44. R1c2 {[%clk 0:00:27]}  Rf6+ {[%clk 0:00:14]} 45. Kg2 {[%clk 0:00:27]}  Ree6 {[%clk 0:00:15]} 46. h3 {[%clk 0:00:20]}  Rf3 {[%clk 0:00:13]} 47. Re2 {[%clk 0:00:20]}  Kc7 {[%clk 0:00:08]} 48. hxg4 {[%clk 0:00:20]}  hxg4 {[%clk 0:00:09]} 49. Rd3 {[%clk 0:00:19]}  Re4 {[%clk 0:00:07]} 50. Re1 {[%clk 0:00:11]}  d4 {[%clk 0:00:06]} 51. Rh1 {[%clk 0:00:11]}  Rfxe3 {[%clk 0:00:04]} 52. Rh7+ {[%clk 0:00:11]}  Kb6 {[%clk 0:00:05]} 53. Rd2 {[%clk 0:00:09]}  Rxa3 {[%clk 0:00:04]} 54. Rf2 {[%clk 0:00:07]}  Rf3 {[%clk 0:00:05]} 55. Rxf3 {[%clk 0:00:06]}  gxf3+ {[%clk 0:00:06]} 56. Kxf3 {[%clk 0:00:07]}  Re3+ {[%clk 0:00:05]} 57. Kf4 {[%clk 0:00:08]}  a3 {[%clk 0:00:05]} 58. Rh2 {[%clk 0:00:08]}  Rb3 {[%clk 0:00:05]} 59. Ra2 {[%clk 0:00:09]}  Rxb4 {[%clk 0:00:03]} 60. Rxa3 {[%clk 0:00:09]}  Kc5 {[%clk 0:00:03]} 61. Ke4 {[%clk 0:00:09]}  Rb1 {[%clk 0:00:03]} 62. Ra2 {[%clk 0:00:08]}  Re1+ {[%clk 0:00:03]} 63. Kf4 {[%clk 0:00:08]}  Kd5 {[%clk 0:00:03]} 64. g4 {[%clk 0:00:06]}  c5 {[%clk 0:00:03]} 65. Ra8 {[%clk 0:00:06]}  Kc4 {[%clk 0:00:03]} 66. Re8 {[%clk 0:00:05]}  Rxe8 {[%clk 0:00:02]} 67. Kf5 {[%clk 0:00:06]}  Ra8 {[%clk 0:00:03]} 68. g5 {[%clk 0:00:06]}  b4 {[%clk 0:00:04]} 69. g6 {[%clk 0:00:07]}  b3 {[%clk 0:00:05]} 70. g7 {[%clk 0:00:08]}  b2 {[%clk 0:00:05]} 71. Kf6 {[%clk 0:00:09]}  Rg8 {[%clk 0:00:06]} 72. Kf7 {[%clk 0:00:10]}  Rxg7+ {[%clk 0:00:07]} 73. Kxg7 {[%clk 0:00:10]}  b1=Q {[%clk 0:00:08]} 74. Kf7 {[%clk 0:00:11]}  d3 {[%clk 0:00:09]} 75. Ke6 {[%clk 0:00:12]}  d2 {[%clk 0:00:09]} 76. Kd7 {[%clk 0:00:13]}  Qb2 {[%clk 0:00:10]} 77. Kc6 {[%clk 0:00:14]}  Qd4 {[%clk 0:00:11]} 78. Kc7 {[%clk 0:00:15]}  Kd3 {[%clk 0:00:12]} 79. Kc6 {[%clk 0:00:16]}  c4 {[%clk 0:00:13]} 0-1


[Site "https://www.chess.com"]

[Event "Early Titled Tuesday Blitz | February 8 2022"]
[White "Jaskolka, Tomasz"]
[Black "Miszler, Levente"]
[WhiteFideId "1170791"]
[BlackFideId "763276"]
[WhiteElo "2054"]
[BlackElo "1966"]
[Result "1-0"]
[Round "09"]
[TimeControl "180+1"]
[Date "2022.02.08"]
[WhiteClock "0:00:09"]
[BlackClock "0:00:03"]

1. e4 {[%clk 0:03:00]}  c5 {[%clk 0:02:58]} 2. Nf3 {[%clk 0:03:00]}  e6 {[%clk 0:02:57]} 3. d4 {[%clk 0:02:59]}  cxd4 {[%clk 0:02:56]} 4. Nxd4 {[%clk 0:03:00]}  Nf6 {[%clk 0:02:56]} 5. Nc3 {[%clk 0:02:56]}  Nc6 {[%clk 0:02:56]} 6. Nxc6 {[%clk 0:02:36]}  bxc6 {[%clk 0:02:57]} 7. e5 {[%clk 0:02:37]}  Nd5 {[%clk 0:02:56]} 8. Ne4 {[%clk 0:02:35]}  f5 {[%clk 0:02:49]} 9. exf6 {[%clk 0:02:33]}  Nxf6 {[%clk 0:02:48]} 10. Nd6+ {[%clk 0:02:25]}  Bxd6 {[%clk 0:02:45]} 11. Qxd6 {[%clk 0:02:26]}  Qe7 {[%clk 0:02:45]} 12. Bf4 {[%clk 0:02:25]}  Nd5 {[%clk 0:02:32]} 13. Bg3 {[%clk 0:02:02]}  Qf6 {[%clk 0:02:22]} 14. O-O-O {[%clk 0:01:55]}  Ne7 {[%clk 0:02:09]} 15. Be5 {[%clk 0:01:30]}  Qf7 {[%clk 0:01:46]} 16. g4 {[%clk 0:01:21]}  O-O {[%clk 0:01:45]} 17. Bd3 {[%clk 0:01:20]}  Nd5 {[%clk 0:01:17]} 18. f4 {[%clk 0:00:59]}  Qe7 {[%clk 0:01:13]} 19. Rdf1 {[%clk 0:00:51]}  a5 {[%clk 0:01:02]} 20. f5 {[%clk 0:00:46]}  exf5 {[%clk 0:01:02]} 21. Bxf5 {[%clk 0:00:46]}  Ba6 {[%clk 0:00:57]} 22. Rf3 {[%clk 0:00:37]}  g6 {[%clk 0:00:47]} 23. Rg1 {[%clk 0:00:25]}  Qg5+ {[%clk 0:00:37]} 24. Kb1 {[%clk 0:00:20]}  gxf5 {[%clk 0:00:37]} 25. Qxd7 {[%clk 0:00:17]}  Nf6 {[%clk 0:00:13]} 26. Qe6+ {[%clk 0:00:14]}  Kg7 {[%clk 0:00:11]} 27. Rxf5 {[%clk 0:00:15]}  Qg6 {[%clk 0:00:09]} 28. g5 {[%clk 0:00:13]}  Bc8 {[%clk 0:00:05]} 29. gxf6+ {[%clk 0:00:13]}  Kh6 {[%clk 0:00:03]} 30. Rxg6+ {[%clk 0:00:09]}  hxg6 {[%clk 0:00:03]} 31. Bf4+ {[%clk 0:00:09]} 1-0


[Site "https://www.chess.com"]

[Event "Early Titled Tuesday Blitz | February 8 2022"]
[White "Jumabayev, Rinat"]
[Black "Hess, Robert"]
[WhiteFideId "13702661"]
[BlackFideId "2022036"]
[WhiteElo "2561"]
[BlackElo "2557"]
[Result "0-1"]
[Round "09"]
[TimeControl "180+1"]
[Date "2022.02.08"]
[WhiteClock "0:00:07"]
[BlackClock "0:00:03"]

1. d4 {[%clk 0:03:00]}  g6 {[%clk 0:02:59]} 2. e4 {[%clk 0:02:59]}  Bg7 {[%clk 0:03:00]} 3. Nc3 {[%clk 0:03:00]}  a6 {[%clk 0:03:00]} 4. a4 {[%clk 0:02:57]}  d6 {[%clk 0:03:00]} 5. Be3 {[%clk 0:02:58]}  Nd7 {[%clk 0:02:59]} 6. Qd2 {[%clk 0:02:55]}  h6 {[%clk 0:02:59]} 7. Bc4 {[%clk 0:02:51]}  e6 {[%clk 0:02:59]} 8. Nge2 {[%clk 0:02:50]}  b6 {[%clk 0:02:58]} 9. Nf4 {[%clk 0:02:30]}  Bb7 {[%clk 0:02:44]} 10. Bxe6 {[%clk 0:02:16]}  fxe6 {[%clk 0:02:45]} 11. Nxe6 {[%clk 0:02:16]}  Qc8 {[%clk 0:02:16]} 12. d5 {[%clk 0:01:55]}  Rh7 {[%clk 0:01:47]} 13. Nxg7+ {[%clk 0:01:43]}  Rxg7 {[%clk 0:01:48]} 14. Bxh6 {[%clk 0:01:43]}  Nxh6 {[%clk 0:01:44]} 15. Qxh6 {[%clk 0:01:42]}  Kf7 {[%clk 0:01:45]} 16. O-O {[%clk 0:01:23]}  Nf6 {[%clk 0:01:38]} 17. f4 {[%clk 0:01:13]}  Rh7 {[%clk 0:00:53]} 18. Qg5 {[%clk 0:01:13]}  Rh5 {[%clk 0:00:51]} 19. Qg3 {[%clk 0:01:10]}  Qg4 {[%clk 0:00:47]} 20. Qxg4 {[%clk 0:00:48]}  Nxg4 {[%clk 0:00:48]} 21. h3 {[%clk 0:00:49]}  Nf6 {[%clk 0:00:45]} 22. Rae1 {[%clk 0:00:42]}  Re8 {[%clk 0:00:44]} 23. Kf2 {[%clk 0:00:36]}  c6 {[%clk 0:00:23]} 24. Kg3 {[%clk 0:00:17]}  cxd5 {[%clk 0:00:20]} 25. e5 {[%clk 0:00:17]}  dxe5 {[%clk 0:00:17]} 26. fxe5 {[%clk 0:00:17]}  Rhxe5 {[%clk 0:00:18]} 27. Rd1 {[%clk 0:00:17]}  Rf5 {[%clk 0:00:16]} 28. Rxf5 {[%clk 0:00:16]}  gxf5 {[%clk 0:00:17]} 29. Kf4 {[%clk 0:00:17]}  Kg6 {[%clk 0:00:17]} 30. Rd3 {[%clk 0:00:16]}  Nh5+ {[%clk 0:00:16]} 31. Kf3 {[%clk 0:00:16]}  d4+ {[%clk 0:00:16]} 32. Kf2 {[%clk 0:00:17]}  dxc3 {[%clk 0:00:16]} 33. Rxc3 {[%clk 0:00:18]}  Rc8 {[%clk 0:00:14]} 34. Rb3 {[%clk 0:00:16]}  Rxc2+ {[%clk 0:00:14]} 35. Ke3 {[%clk 0:00:17]}  Rc6 {[%clk 0:00:13]} 36. g4 {[%clk 0:00:15]}  fxg4 {[%clk 0:00:13]} 37. hxg4 {[%clk 0:00:16]}  Nf6 {[%clk 0:00:14]} 38. Kf4 {[%clk 0:00:16]}  Rc4+ {[%clk 0:00:10]} 39. Ke5 {[%clk 0:00:16]}  Nd5 {[%clk 0:00:08]} 40. a5 {[%clk 0:00:11]}  b5 {[%clk 0:00:07]} 41. Kd6 {[%clk 0:00:10]}  Rc6+ {[%clk 0:00:06]} 42. Kd7 {[%clk 0:00:10]}  Nf6+ {[%clk 0:00:06]} 43. Kd8 {[%clk 0:00:10]}  Nxg4 {[%clk 0:00:06]} 44. Rg3 {[%clk 0:00:11]}  Bc8 {[%clk 0:00:06]} 45. b4 {[%clk 0:00:10]}  Bf5 {[%clk 0:00:06]} 46. Rf3 {[%clk 0:00:09]}  Rc8+ {[%clk 0:00:04]} 47. Ke7 {[%clk 0:00:09]}  Ne5 {[%clk 0:00:04]} 48. Rg3+ {[%clk 0:00:08]}  Bg4 {[%clk 0:00:04]} 49. Kd6 {[%clk 0:00:08]}  Kf5 {[%clk 0:00:04]} 50. Rg1 {[%clk 0:00:08]}  Rc6+ {[%clk 0:00:04]} 51. Ke7 {[%clk 0:00:08]}  Re6+ {[%clk 0:00:03]} 52. Kd8 {[%clk 0:00:08]}  Nc6+ {[%clk 0:00:04]} 53. Kc7 {[%clk 0:00:08]}  Nxb4 {[%clk 0:00:04]} 54. Rf1+ {[%clk 0:00:08]}  Kg5 {[%clk 0:00:05]} 55. Rb1 {[%clk 0:00:07]}  Nd5+ {[%clk 0:00:04]} 56. Kb7 {[%clk 0:00:07]}  b4 {[%clk 0:00:04]} 57. Rb2 {[%clk 0:00:07]}  Bf5 {[%clk 0:00:05]} 58. Rd2 {[%clk 0:00:07]}  b3 {[%clk 0:00:04]} 59. Rb2 {[%clk 0:00:06]}  Bc2 {[%clk 0:00:03]} 60. Ka7 {[%clk 0:00:07]}  Kf4 {[%clk 0:00:03]} 0-1


[Site "https://www.chess.com"]

[Event "Early Titled Tuesday Blitz | February 8 2022"]
[White "Kalogridis, Antonios"]
[Black "Martinovici, Ilia"]
[WhiteFideId "25833901"]
[BlackFideId "13907034"]
[WhiteElo "1495"]
[BlackElo "2303"]
[Result "0-1"]
[Round "09"]
[TimeControl "180+1"]
[Date "2022.02.08"]
[WhiteClock "0:00:15"]
[BlackClock "0:00:50"]

1. d4 {[%clk 0:03:00]}  d5 {[%clk 0:02:59]} 2. c4 {[%clk 0:03:00]}  c6 {[%clk 0:03:00]} 3. Nf3 {[%clk 0:03:00]}  Nf6 {[%clk 0:03:00]} 4. Nc3 {[%clk 0:03:00]}  e6 {[%clk 0:03:00]} 5. e3 {[%clk 0:02:58]}  Nbd7 {[%clk 0:03:00]} 6. b3 {[%clk 0:02:57]}  Bb4 {[%clk 0:02:59]} 7. Bd2 {[%clk 0:02:55]}  O-O {[%clk 0:02:59]} 8. a3 {[%clk 0:02:52]}  Bd6 {[%clk 0:02:59]} 9. Be2 {[%clk 0:02:50]}  e5 {[%clk 0:02:54]} 10. cxd5 {[%clk 0:02:48]}  e4 {[%clk 0:02:54]} 11. Ne5 {[%clk 0:02:44]}  cxd5 {[%clk 0:02:45]} 12. f4 {[%clk 0:02:40]}  exf3 {[%clk 0:02:43]} 13. Nxf3 {[%clk 0:02:41]}  Re8 {[%clk 0:02:36]} 14. O-O {[%clk 0:02:41]}  a6 {[%clk 0:02:36]} 15. Bd3 {[%clk 0:02:40]}  Nf8 {[%clk 0:02:31]} 16. Ng5 {[%clk 0:02:37]}  Bg4 {[%clk 0:02:27]} 17. Nxf7 {[%clk 0:02:23]}  Bxh2+ {[%clk 0:01:38]} 18. Kh1 {[%clk 0:02:11]}  Qc7 {[%clk 0:01:37]} 19. Nxd5 {[%clk 0:01:27]}  Bxd1 {[%clk 0:01:28]} 20. Nxc7 {[%clk 0:01:19]}  Bxc7 {[%clk 0:01:29]} 21. Bc4 {[%clk 0:01:12]}  Bh5 {[%clk 0:01:21]} 22. Nd6+ {[%clk 0:01:01]}  Kh8 {[%clk 0:01:20]} 23. Nxe8 {[%clk 0:01:00]}  Rxe8 {[%clk 0:01:21]} 24. Bd3 {[%clk 0:00:54]}  Ne6 {[%clk 0:01:13]} 25. Rac1 {[%clk 0:00:53]}  Bd6 {[%clk 0:01:13]} 26. b4 {[%clk 0:00:48]}  Ng5 {[%clk 0:01:05]} 27. Rf5 {[%clk 0:00:45]}  Nge4 {[%clk 0:00:50]} 28. Bxe4 {[%clk 0:00:31]}  Nxe4 {[%clk 0:00:51]} 29. Rxh5 {[%clk 0:00:26]}  Ng3+ {[%clk 0:00:50]} 30. Kg1 {[%clk 0:00:23]}  Nxh5 {[%clk 0:00:51]} 31. e4 {[%clk 0:00:19]}  Bf4 {[%clk 0:00:50]} 32. Bxf4 {[%clk 0:00:15]}  Nxf4 {[%clk 0:00:51]} 33. e5 {[%clk 0:00:15]}  Ne2+ {[%clk 0:00:50]} 0-1


[Site "https://www.chess.com"]

[Event "Early Titled Tuesday Blitz | February 8 2022"]
[White "Kanyamarala, Tarun"]
[Black "Delorme, Alban"]
[WhiteFideId "45004714"]
[BlackFideId "623636"]
[WhiteElo "2144"]
[BlackElo "2197"]
[Result "1-0"]
[Round "09"]
[TimeControl "180+1"]
[Date "2022.02.08"]
[WhiteClock "0:00:26"]
[BlackClock "0:00:05"]

1. d4 {[%clk 0:03:00]}  Nf6 {[%clk 0:02:57]} 2. c4 {[%clk 0:03:01]}  g6 {[%clk 0:02:56]} 3. Nc3 {[%clk 0:03:01]}  Bg7 {[%clk 0:02:57]} 4. e4 {[%clk 0:03:01]}  d6 {[%clk 0:02:58]} 5. Nf3 {[%clk 0:02:59]}  O-O {[%clk 0:02:57]} 6. Be2 {[%clk 0:02:54]}  e5 {[%clk 0:02:58]} 7. d5 {[%clk 0:02:55]}  a5 {[%clk 0:02:58]} 8. Bg5 {[%clk 0:02:53]}  Na6 {[%clk 0:02:58]} 9. Nd2 {[%clk 0:02:51]}  Qe8 {[%clk 0:02:57]} 10. g4 {[%clk 0:02:47]}  Nc5 {[%clk 0:02:52]} 11. Be3 {[%clk 0:02:41]}  Bd7 {[%clk 0:02:30]} 12. h4 {[%clk 0:02:34]}  Qc8 {[%clk 0:02:05]} 13. f3 {[%clk 0:02:28]}  h5 {[%clk 0:02:02]} 14. Rg1 {[%clk 0:02:20]}  Kh8 {[%clk 0:01:38]} 15. g5 {[%clk 0:02:03]}  Ng8 {[%clk 0:01:29]} 16. Nf1 {[%clk 0:01:52]}  Ne7 {[%clk 0:01:24]} 17. Ng3 {[%clk 0:01:51]}  Kh7 {[%clk 0:01:15]} 18. f4 {[%clk 0:01:41]}  exf4 {[%clk 0:01:12]} 19. Bxf4 {[%clk 0:01:42]}  f6 {[%clk 0:01:09]} 20. Bxh5 {[%clk 0:01:13]}  gxh5 {[%clk 0:00:55]} 21. Nxh5 {[%clk 0:01:13]}  fxg5 {[%clk 0:00:49]} 22. Nxg7 {[%clk 0:00:52]}  Rxf4 {[%clk 0:00:45]} 23. Qh5+ {[%clk 0:00:50]}  Kg8 {[%clk 0:00:16]} 24. Rxg5 {[%clk 0:00:33]}  Rg4 {[%clk 0:00:14]} 25. Ne6+ {[%clk 0:00:25]}  Rxg5 {[%clk 0:00:09]} 26. Qxg5+ {[%clk 0:00:25]}  Kf7 {[%clk 0:00:05]} 27. Qg7+ {[%clk 0:00:25]}  Ke8 {[%clk 0:00:05]} 28. Qf8# {[%clk 0:00:26]} 1-0


[Site "https://www.chess.com"]

[Event "Early Titled Tuesday Blitz | February 8 2022"]
[White "Kazarian, Anna-Maja"]
[Black "Fernandez, Michael"]
[WhiteFideId "1033689"]
[BlackFideId "5803560"]
[WhiteElo "2004"]
[BlackElo "2110"]
[Result "0-1"]
[Round "09"]
[TimeControl "180+1"]
[Date "2022.02.08"]
[WhiteClock "0:00:01"]
[BlackClock "0:00:14"]

1. e4 {[%clk 0:03:00]}  c6 {[%clk 0:02:23]} 2. d4 {[%clk 0:02:59]}  d5 {[%clk 0:02:20]} 3. exd5 {[%clk 0:02:58]}  cxd5 {[%clk 0:02:17]} 4. c4 {[%clk 0:02:58]}  Nf6 {[%clk 0:02:17]} 5. Nc3 {[%clk 0:02:57]}  Nc6 {[%clk 0:02:18]} 6. Nf3 {[%clk 0:02:57]}  Bg4 {[%clk 0:02:18]} 7. cxd5 {[%clk 0:02:51]}  Nxd5 {[%clk 0:02:18]} 8. Be2 {[%clk 0:02:49]}  e6 {[%clk 0:02:10]} 9. O-O {[%clk 0:02:43]}  Be7 {[%clk 0:01:59]} 10. Be3 {[%clk 0:02:37]}  O-O {[%clk 0:01:51]} 11. Rc1 {[%clk 0:02:27]}  Rc8 {[%clk 0:01:47]} 12. h3 {[%clk 0:02:19]}  Bf5 {[%clk 0:01:37]} 13. Qd2 {[%clk 0:02:11]}  Bb4 {[%clk 0:01:27]} 14. Bd3 {[%clk 0:01:55]}  Bxd3 {[%clk 0:01:26]} 15. Qxd3 {[%clk 0:01:56]}  Nxe3 {[%clk 0:01:25]} 16. fxe3 {[%clk 0:01:53]}  Ne7 {[%clk 0:01:25]} 17. e4 {[%clk 0:01:48]}  Qb6 {[%clk 0:01:24]} 18. Kh1 {[%clk 0:01:37]}  Rfd8 {[%clk 0:01:24]} 19. e5 {[%clk 0:01:24]}  Ng6 {[%clk 0:01:22]} 20. Ne2 {[%clk 0:01:16]}  Qa5 {[%clk 0:01:18]} 21. Rxc8 {[%clk 0:01:08]}  Rxc8 {[%clk 0:01:18]} 22. Ng5 {[%clk 0:01:08]}  Rf8 {[%clk 0:01:08]} 23. Nf4 {[%clk 0:00:58]}  Be7 {[%clk 0:00:57]} 24. Nxg6 {[%clk 0:00:22]}  hxg6 {[%clk 0:00:57]} 25. Ne4 {[%clk 0:00:17]}  Qxa2 {[%clk 0:00:53]} 26. Qe3 {[%clk 0:00:15]}  Qxb2 {[%clk 0:00:48]} 27. Nf6+ {[%clk 0:00:15]}  gxf6 {[%clk 0:00:43]} 28. exf6 {[%clk 0:00:16]}  Bxf6 {[%clk 0:00:43]} 29. Rxf6 {[%clk 0:00:16]}  Rd8 {[%clk 0:00:40]} 30. Rf4 {[%clk 0:00:12]}  Qa1+ {[%clk 0:00:26]} 31. Kh2 {[%clk 0:00:12]}  e5 {[%clk 0:00:20]} 32. Qxe5 {[%clk 0:00:12]}  Qa6 {[%clk 0:00:18]} 33. Kg1 {[%clk 0:00:05]}  Qd6 {[%clk 0:00:17]} 34. Qg5 {[%clk 0:00:04]}  Re8 {[%clk 0:00:15]} 35. Kf2 {[%clk 0:00:03]}  Qe7 {[%clk 0:00:13]} 36. Qxe7 {[%clk 0:00:03]}  Rxe7 {[%clk 0:00:14]} 37. Rf6 {[%clk 0:00:03]}  Kg7 {[%clk 0:00:14]} 38. Rd6 {[%clk 0:00:04]}  a5 {[%clk 0:00:14]} 39. Rb6 {[%clk 0:00:03]}  Rd7 {[%clk 0:00:14]} 40. Ke3 {[%clk 0:00:03]}  Rc7 {[%clk 0:00:12]} 41. Kd3 {[%clk 0:00:03]}  Kf8 {[%clk 0:00:12]} 42. Rb5 {[%clk 0:00:03]}  a4 {[%clk 0:00:13]} 43. Ra5 {[%clk 0:00:03]}  b5 {[%clk 0:00:12]} 44. Rxb5 {[%clk 0:00:03]}  Ra7 {[%clk 0:00:13]} 45. Rb1 {[%clk 0:00:03]}  Ke7 {[%clk 0:00:13]} 46. Ra1 {[%clk 0:00:02]}  Kd6 {[%clk 0:00:14]} 47. Ra3 {[%clk 0:00:02]}  Kd5 {[%clk 0:00:14]} 48. Kc3 {[%clk 0:00:01]}  g5 {[%clk 0:00:14]} 49. Kb4 {[%clk 0:00:01]}  Kxd4 {[%clk 0:00:14]} 0-1


[Site "https://www.chess.com"]

[Event "Early Titled Tuesday Blitz | February 8 2022"]
[White "Kiseleva, Arina"]
[Black "Kostiukov, Alexandr"]
[WhiteFideId "4164989"]
[BlackFideId "14108100"]
[WhiteElo "1866"]
[BlackElo "2202"]
[Result "0-1"]
[Round "09"]
[TimeControl "180+1"]
[Date "2022.02.08"]
[WhiteClock "0:00:25"]
[BlackClock "0:02:03"]

1. d4 {[%clk 0:02:54]}  g6 {[%clk 0:02:58]} 2. c3 {[%clk 0:02:54]}  Bg7 {[%clk 0:02:59]} 3. Nf3 {[%clk 0:02:54]}  d6 {[%clk 0:02:59]} 4. Bf4 {[%clk 0:02:54]}  Nc6 {[%clk 0:02:58]} 5. h3 {[%clk 0:02:50]}  e5 {[%clk 0:02:58]} 6. dxe5 {[%clk 0:02:42]}  Nxe5 {[%clk 0:02:59]} 7. Nxe5 {[%clk 0:02:37]}  dxe5 {[%clk 0:03:00]} 8. Qxd8+ {[%clk 0:02:37]}  Kxd8 {[%clk 0:03:01]} 9. Bg5+ {[%clk 0:02:35]}  f6 {[%clk 0:03:00]} 10. Be3 {[%clk 0:02:25]}  Be6 {[%clk 0:03:00]} 11. Na3 {[%clk 0:02:17]}  c6 {[%clk 0:02:57]} 12. O-O-O+ {[%clk 0:02:10]}  Kc7 {[%clk 0:02:55]} 13. Kb1 {[%clk 0:02:10]}  b6 {[%clk 0:02:51]} 14. g4 {[%clk 0:02:00]}  Bh6 {[%clk 0:02:46]} 15. Bxh6 {[%clk 0:01:55]}  Nxh6 {[%clk 0:02:47]} 16. e3 {[%clk 0:01:32]}  Nf7 {[%clk 0:02:46]} 17. Bc4 {[%clk 0:01:25]}  Bxc4 {[%clk 0:02:44]} 18. Nxc4 {[%clk 0:01:26]}  h5 {[%clk 0:02:43]} 19. f3 {[%clk 0:01:15]}  Rad8 {[%clk 0:02:39]} 20. Kc2 {[%clk 0:00:57]}  Rxd1 {[%clk 0:02:36]} 21. Rxd1 {[%clk 0:00:48]}  b5 {[%clk 0:02:31]} 22. Nd2 {[%clk 0:00:45]}  hxg4 {[%clk 0:02:29]} 23. hxg4 {[%clk 0:00:46]}  Rh2 {[%clk 0:02:29]} 24. Kd3 {[%clk 0:00:37]}  Ng5 {[%clk 0:02:24]} 25. Rf1 {[%clk 0:00:34]}  Kd6 {[%clk 0:02:08]} 26. b3 {[%clk 0:00:30]}  f5 {[%clk 0:02:02]} 27. gxf5 {[%clk 0:00:28]}  gxf5 {[%clk 0:02:02]} 28. Rg1 {[%clk 0:00:27]}  Rxd2+ {[%clk 0:02:02]} 29. Kxd2 {[%clk 0:00:23]}  Nxf3+ {[%clk 0:02:02]} 30. Ke2 {[%clk 0:00:23]}  Nxg1+ {[%clk 0:02:02]} 31. Kf2 {[%clk 0:00:24]}  Nh3+ {[%clk 0:02:02]} 32. Kg3 {[%clk 0:00:24]}  Ng5 {[%clk 0:02:02]} 33. Kh4 {[%clk 0:00:25]}  Ne4 {[%clk 0:02:03]} 0-1


[Site "https://www.chess.com"]